Cogmind - Beta 16.1 @@@ ROGUE MODE // 2026.02.11 @ 20:57:29 Player: M4-TR4 Result: Destroyed by D-53 Grenadier with Mini Grenade Launcher Performance ------------- Evolutions (0) 0 Regions Visited (2) 400 Robots Destroyed (7) 35 Value Destroyed (115) 115 Prototype IDs (0) 0 Alien Tech Used (0) 0 Bonus (0) 0 TOTAL SCORE: 550 Bonus ------- None Cogmind --------- Core Integrity 0/250 Matter 260/300 Energy 100/100 System Corruption 0% Temperature Cool (0) Movement Treading (160) Location -10/Mines Parts ------- > --- POWER (1) -------- (None) > --- PROPULSION (2) --- Light Treads > --- UTILITY (2) ------ Large Storage Unit > --- WEAPON (2) ------- (None) > --- INVENTORY (15) --- Wheel Large Storage Unit Light Armor Plating Mining Laser Peak State ------------ > --- POWER ------------ Ion Engine > --- PROPULSION ------- Wheel Wheel > --- UTILITY ---------- Small Storage Unit Seismic Detector > --- WEAPON ----------- Medium Laser Light Assault Rifle > --- INVENTORY -------- Light Treads Light Treads Wheel Mining Laser [Rating: 7] Favorites ----------- Power Ion Engine Engine Ion Engine Propulsion Wheel Treads Light Treads Wheel Wheel Utility Seismic Detector Device Seismic Detector Storage Large Storage Unit Weapon Medium Laser Energy Gun Medium Laser Ballistic Gun Light Assault Rifle Launcher Grenade Launcher Build | -11 -10 -10 ------- Run | Yrd Mat Min Slots Evolved . | . . . Power . | . . . Propulsion . | . . . Utility . | . . . Weapon . | . . . Parts Attached 11 | 6 2 3 Power 1 | . 1 . Engine 1 | . 1 . Core . | . . . Reactor . | . . . Propulsion 4 | 2 . 2 Treads 2 | . . 2 Leg . | . . . Wheel 2 | 2 . . Hover . | . . . Flight . | . . . Utility 3 | 2 1 . Device 1 | 1 . . Storage 2 | 1 1 . Processor . | . . . Hackware . | . . . Protection . | . . . Artifact . | . . . Weapon 3 | 2 . 1 Energy Gun 1 | 1 . . Energy Cannon . | . . . Ballistic Gun 1 | 1 . . Ballistic Cannon . | . . . Launcher 1 | . . 1 Special Weapon . | . . . Impact Weapon . | . . . Slashing Weapon . | . . . Piercing Weapon . | . . . Special Melee Weapon . | . . . Unidentified Prototypes . | . . . Parts Lost 8 | . . 8 Power 1 | . . 1 Propulsion 3 | . . 3 Utility 1 | . . 1 Weapon 3 | . . 3 Highest Loss Streak 8 | . . 8 To Critical Strikes . | . . . Average Backups 5 | 4 5 6 Power . | . . . Propulsion 2 | 2 3 2 Utility . | . . 2 Weapon 1 | . 1 1 Tool/Special . | . . . Unused Backups 3 | . . 3 Power . | . . . Propulsion 1 | . . 1 Utility 1 | . . 1 Weapon 1 | . . 1 Tool/Special . | . . . Average Slot Usage (%) 97 | . 100 95 Engine 13 | . 14 12 Treads 1 | . . 2 Wheel 26 | . 28 25 Device 13 | . 14 13 Storage 14 | . 14 14 Energy Gun 13 | . 14 13 Ballistic Gun 13 | . 14 12 Peak Build Rating 7 | 6 7 7 Average Rating 6 | 4 7 6 On Entrance 4 | . 6 7 Avg Prop Armor Cover (%) . | . . . Naked Turns . | . . . Heaviest Build 29 | 9 29 29 Greatest Support 40 | 20 20 40 Greatest Overweight (x) 2 | . 1 2 Average Overweight (x) . | . . 1 Largest Inventory Capacity 15 | 8 15 15 Average Capacity 11 | 7 12 15 Most Carried 7 | 6 7 7 Average Carried 5 | 4 5 6 Final Capacity 15 | 8 15 15 Final Carried 7 | 5 7 4 Class Distribution -------------------- 100% | Mutant Dominant Class ---------------- Mutant | -10/Materials Mutant | -10/Mines Resources | -11 -10 -10 ----------- Run | Yrd Mat Min Matter Collected 309 | 236 73 . Remotely . | . . . Salvage Created 270 | 177 93 . Parts 11 | 7 4 . Haulers Intercepted . | . . . Recyclers Shooed . | . . . Parts Field Recycled . | . . . Retrieved Matter . | . . . Parts Self-Destructed . | . . . Prevented . | . . . Parts Restored . | . . . Kills | -11 -10 -10 ------- Run | Yrd Mat Min Combat Hostiles Destroyed 2 | . 2 . Guns 2 | . 2 . Classes Destroyed 3 | 2 1 . Tunneler 4 | 4 . . Recycler 1 | 1 . . Grunt 2 | . 2 . Best Kill Streak 3 | 3 2 . Combat Bots Only 2 | . 2 . Max Kills in Single Turn 1 | 1 1 . Gunslinging . | . . . Exploded . | . . . Melee . | . . . Uniques/NPCs Destroyed . | . . . Combat | -11 -10 -10 -------- Run | Yrd Mat Min Hostile Shots Fired 37 | . 16 21 Missed 5 | . 4 1 Hits 32 | . 12 20 Projectile 32 | . 12 20 AOE 21 | . . 21 Critical Strikes 1 | . 1 . Damage Taken 915 | . 171 744 Core 269 | . 69 200 Absorbed by Shields . | . . . Core Remaining (%) 100 | 100 . . Volleys Fired 33 | 19 10 4 Largest 2 | 2 2 2 Hottest 80 | 70 70 80 Shots Fired 64 | 38 20 6 Gun 60 | 38 20 2 Cannon . | . . . Launcher 4 | . . 4 Special . | . . . Kinetic 29 | 19 10 . Thermal 31 | 19 10 2 Explosive 4 | . . 4 Electromagnetic . | . . . Robot Hit Streak 7 | 7 4 5 Robot Miss Streak 3 | 3 1 2 Penetration Max . | . . . Secondary Targets . | . . . Shots Hit Robots 38 | 21 14 3 Core Hits 22 | 8 7 7 Critical Kills . | . . . Critical Parts Destroyed . | . . . Critical Strikes 2 | 2 . . Burn 2 | 2 . . Melee Attacks . | . . . Impact . | . . . Slashing . | . . . Piercing . | . . . Sneak Attacks . | . . . Combat Hostiles . | . . . Follow-up Attacks . | . . . Damage Inflicted 446 | 220 163 63 Guns 395 | 220 163 12 Cannons . | . . . Explosions 51 | . . 51 Melee . | . . . Ramming . | . . . Kinetic 149 | 83 66 . Thermal 246 | 137 97 12 Explosive 51 | . . 51 Electromagnetic . | . . . Impact . | . . . Slashing . | . . . Piercing . | . . . Highest Corruption . | . . . Average Corruption . | . . . Corruption Purged . | . . . Corruption Blocked . | . . . Overload Shots . | . . . Overflow Damage . | . . . Projectiles . | . . . Explosions . | . . . Melee . | . . . Knockbacks . | . . . Impact . | . . . Kinetic . | . . . Secondary . | . . . Self-Inflicted Damage . | . . . Shots . | . . . Rammed . | . . . Targets Rammed . | . . . Kicked . | . . . Crushed . | . . . Highest Temperature 257 | 40 257 6 Average Temperature 67 | 18 130 3 Received Heat Transfer 117 | . 117 . Effects 1 | . 1 . Interference 1 | . 1 . Siege Activations . | . . . Martial Activations . | . . . Shielding Activations . | . . . Robots Disrupted . | . . . Combat Hostiles . | . . . Robots Corrupted . | . . . Combat Hostiles . | . . . Parts Fried . | . . . Impact Corruptions . | . . . Robots Melted . | . . . Combat Hostiles . | . . . Parts Melted 3 | 2 1 . Heat Transferred 888 | 555 296 37 Parts Sabotaged . | . . . Parts Stolen . | . . . Parts Stripped . | . . . Power Chain Reactions . | . . . Alert | -11 -10 -10 ------- Run | Yrd Mat Min Maximum Alert Level . | . . . Low Security (%) 100 | 100 100 100 Level 1 . | . . . Level 2 . | . . . Level 3 . | . . . Level 4 . | . . . Level 5 . | . . . High Security . | . . . Max Security . | . . . Peak Influence 46 | 10 46 9 Initial 9 | . . 9 Average 4 | . 11 1 Influence Increases 104 | 25 71 8 Destroy 0b10 Robot/C 40 | . 40 . Destroy 0b10 Robot/NC 25 | 25 . . Destroy Leader 10 | . 10 . Successful Hack 6 | . 6 . Destroy Structure 8 | . . 8 Partial Spotted 15 | . 15 . Influence Decreases 104 | 25 45 34 Entered New Map 17 | . . 17 Time Decay 79 | 25 45 9 Lost Part 8 | . . 8 Squads Dispatched 1 | . 1 . Investigation . | . . . Extermination . | . . . Reinforcement 1 | . 1 . Assault . | . . . Garrison . | . . . Intercept . | . . . Searches Triggered . | . . . Construction Impeded . | . . . Haulers Reinforced . | . . . Active Scanning Responses . | . . . Cargo Convoy Interrupts . | . . . Stealth | -11 -10 -10 --------- Run | Yrd Mat Min Distress Signals 1 | . 1 . Communications Jammed . | . . . Distress Signals . | . . . Times Spotted 8 | . 6 2 Peak Tracking Total 4 | . 4 2 Tactical Retreats . | . . . Traps | -11 -10 -10 ------- Run | Yrd Mat Min Traps Triggered . | . . . Indirectly . | . . . Trap Hack Attempts . | . . . Triggered . | . . . Disarmed . | . . . Reprogrammed . | . . . Reused . | . . . Traps Extracted . | . . . Installed . | . . . Triggered . | . . . Machines | -11 -10 -10 ---------- Run | Yrd Mat Min Machines Disabled . | . . . Max in Single Turn . | . . . Machines Repaired . | . . . Machines Dismantled . | . . . Machines Sabotaged . | . . . Overloaded Fab Kills . | . . . Hacking | -11 -10 -10 --------- Run | Yrd Mat Min Machines Accessed 4 | . 4 . Terminals 4 | . 4 . Fabricators . | . . . Repair Stations . | . . . Recycling Units . | . . . Scanalyzers . | . . . Garrison Access . | . . . Total Hacks 6 | . 6 . Successful 3 | . 3 . Failed 3 | . 3 . Catastrophic 1 | . 1 . Database Lockouts . | . . . Manual 6 | . 6 . Terminals 6 | . 6 . Fabricators . | . . . Repair Stations . | . . . Recycling Units . | . . . Scanalyzers . | . . . Garrison Access . | . . . Terminal Hacks 1 | . 1 . Branch Access Points 1 | . 1 . Fabricator Hacks . | . . . Repair Station Hacks . | . . . Recycling Unit Hacks . | . . . Scanalyzer . | . . . Garrison Access Hacks . | . . . Unauthorized Hacks 2 | . 2 . Terminals 2 | . 2 . Botnet 2 | . 2 . Fabricators . | . . . Repair Stations . | . . . Recycling Units . | . . . Scanalyzers . | . . . Garrison Access . | . . . Data Cores Recovered . | . . . Used . | . . . Hacking Detections 1 | . 1 . Full Trace Events 1 | . 1 . Feedback Events . | . . . Feedback Blocked . | . . . Robot Schematics Acquired . | . . . Robots Built . | . . . Authchips . | . . . Time . | . . . Total Robot Build Rating . | . . . Part Schematics Acquired . | . . . Parts Built . | . . . Authchips . | . . . Time . | . . . Total Part Build Rating . | . . . Part Studies Acquired . | . . . Parts Repaired . | . . . Time . | . . . Parts Recycled . | . . . Recycled Matter . | . . . Retrieved Matter . | . . . Retrieved Components . | . . . Parts Scanalyzed . | . . . Part Schematics Acquired . | . . . Parts Damaged . | . . . Bothacking | -11 -10 -10 ------------ Run | Yrd Mat Min Used RIF Installer . | . . . Robots Hacked . | . . . Non-combat . | . . . Combat . | . . . Robot Hacks Applied . | . . . Relay Couplers Released . | . . . Fabnet Peak Effective % . | . . . Robots Rewired . | . . . Allies Hacked . | . . . Hacks Repelled . | . . . Allies | -11 -10 -10 -------- Run | Yrd Mat Min Total Allies . | . . . Largest Group . | . . . Highest-Rated Group . | . . . Highest-Rated Ally . | . . . Total Orders . | . . . Ally Attacks . | . . . Total Damage . | . . . Kills . | . . . Allies Corrupted . | . . . Allies Melted . | . . . Intel | -11 -10 -10 ------- Run | Yrd Mat Min Active Infowar (turns) 210 | 65 145 . Seismic 210 | 65 145 . Robot Analysis Total . | . . . Derelict Logs Recovered 1 | . . 1 Drone Launches . | . . . Drone Recoveries . | . . . Exploration | -11 -10 -10 ------------- Run | Yrd Mat Min Turns Passed 550 | 187 186 177 Spaces Moved 413 | 75 167 171 Core 19 | 19 . . Treads 2 | . . 2 Legs . | . . . Wheels 392 | 56 167 169 Hover . | . . . Flight . | . . . Fastest Speed 50 | 50 80 95 Average Speed 88 | 72 88 96 Slowest Speed 160 | 80 95 160 Overloaded Moves . | . . . Propulsion Burnouts . | . . . Robots Hopped . | . . . Potential Cave-ins . | . . . Cave-ins Triggered . | . . . Exploration Rate (%) 27 | 3 38 42 Regions Visited 2 Branch Regions 1 Pre-discovered Areas 1 | . . 1 Known Exits Taken 1 | . 1 . Unknown Exits Taken 1 | 1 . . Scrap Searched . | . . . Spaces Dug . | . . . Terrain Destroyed 29 | . . 29 Melee . | . . . Projectile . | . . . AOE 29 | . . 29 Terrain Rammed . | . . . Walls Destroyed . | . . . Machines Disabled . | . . . Actions | -11 -10 -10 --------- Run | Yrd Mat Min Total 537 | 172 187 178 Wait 68 | 64 4 . Move 411 | 74 166 171 Hop . | . . . Pick Up 13 | 9 4 . Fast Attach 2 | 2 . . Attach 8 | 4 1 3 Detach . | . . . Swap 1 | . 1 . Drop 1 | . 1 . Fire 33 | 19 10 4 Melee . | . . . Ram . | . . . Kick . | . . . Crush . | . . . Escape Stasis . | . . . Rewire . | . . . Trap . | . . . Miscellaneous . | . . . Route ------- -11/Scrapyard -10/Materials -10/Mines (discovered 1 exit: [*Mat]) History --------- Turn | Location | Event 7 | -11/Scrapyard | Discovered new exit (range 15) 188 | -11/Scrapyard | Entered Materials 312 | -10/Materials | Build established: Mutant 342 | -10/Materials | Identified exit to Mines 374 | -10/Materials | Entered Mines 460 | -10/Mines | Found a hidden stash of uninstalled traps 471 | -10/Mines | Met a Derelict bent on vengeance 522 | -10/Mines | Assembled infested the area 526 | -10/Mines | Learned location of Storage (-7) 528 | -10/Mines | Discovered new exit (range 13) 534 | -10/Mines | Core integrity fell below 50% 549 | -10/Mines | Core integrity fell below 20% 551 | -10/Mines | Destroyed by D-53 Grenadier with Mini Grenade Launcher Last Messages --------------- 00529_ D-53 Grenadier unfolds itself. 00531_ Wheel destroyed. 00532_ LP-JGN(g): "We scattered so the Unaware couldn't effectively use their advantage in numbers, and I suggest you do the same." 00532_ LP-JGN(g) slips back into the shadows. 00535_ Wheel destroyed. 00536_ A derelict is hurriedly installing traps. 00536_ Ion Engine destroyed. 00537_ Lgt. Assault Rifle destroyed. 00538_ Y9-PI9(g): "Hehe, this'll put a wrench in their mining defense operations..." 00538_ Y9-PI9(g) slips into the shadows. 00538_ The unstable cave ceiling collapses. 00544_ Med. Laser destroyed. 00547_ The unstable cave ceiling collapses. 00547_ Lgt. Treads destroyed. 00548_ Grenade Launcher destroyed. 00549_ The unstable cave ceiling collapses. 00549_ Seismic Detector destroyed. 00550_ The unstable cave ceiling collapses. Map ----- +----------------------------------------------------+ | #????????????????????????????????????????????????? | | #????????????????????????????????????????????????? | | #????????????????????????????????????????????????? | | #####????????????????????????????????????????????? | | #????????????????????????????????????????????? | | #????????????????????????????????????????????? | | #?????? #????????????????????????????????????? | | ##### ??????????????????????????????????????? | | "" #??????????????????????????????????????? | | "" #??????????????????????????????????????? | | "" ######??????????????????????????????????????? | | ##???????????????????????????????????????????? | | ##????????????????????????????????????????????? | | ##??????####????????###???######???????????????? | | ##??????## ##???????# ??? #???????????????? | | #???????# #???????# ?#?^ #???????????????? | | ######### #???????# ? # #???????????????? | | #????????# ? # ????????????????? | | #?######## ^## # ????###??????????? | | ### #### ### # ^ ????# ##?????????? | | ##?# #### u # ^ ????# #?????????? | | ???# # ##### #?????????? | | ???####### ### # #?????????? | | ?????????# ### #??????????? | | ####????## ## # #???????????? | | # ##??## ## """ @ #????????????? | | #### ### """ # ##????????????? | | ## ###?# """ #????????????? | | ##???# #???????????? | | #????######### # #??????? | | ##????????????###### d d % #?????? | | ###????????????????## # # < #????? | | ##???????????????????## ##????? #????? | | #?????????????????????## ##????????????? | | #???????????????????????? #?????????????? | | ##????????????????????????#####?????????????? | | # #???????????????????????????????????????????? | | ## ##???????????????????????????????????????????? | | ?####????????????????????????????????????????????? | | ?????????????????????????????????????????????????? | | ?????????????????????????????????????????????????? | | | | | | | | | | | | | | | | | | | +----------------------------------------------------+ Best States ------------- Heat Dissipation 25 Energy Generation 10 Energy Capacity 250 Matter Stores 300 Matter Capacity 300 Sight Range 16 Terrain Scan Density 10 Evasion (%) 50 Recoil Reduction 2 Item Schematics ----------------- None Robot Schematics ------------------ None Fabricated ------------ Nothing Repaired ---------- Nothing Studied --------- None Alien Tech Used ----------------- None Achievements -------------- None Challenges ------------ None Game ------ Seed StructuralEnhancedRedirector Manual? 0 Play Time 00:09:01 Cumulative 20.2 hours Start 2026.02.11 @ 20:49:43 End 2026.02.11 @ 20:57:29 Sessions 1 Manual Loads 0 Difficulty Rogue Special Mode None Game No. 12 Rogue 3 Adventurer 0 Explorer 9 Win Type - Total 1 Types 1/0/0/0/0/0/0/0/0/0 Lore% 13 Gallery% 20 Achievement% 29 Wizard Run 0 Options --------- Layout 0 ASCII 0 Keyboard 0 Movement Mouse Keybinds 0 Fullscreen 1 Font 18/SmallcapsGlow Map View 76x50 Zoom Use 0% Tactical HUD 1 Map Filters NONE Filters NONE Steam 1 RUN: ae6b779d-a1ad-40be-b5cd-94bdab72c428